[Event "Spring Chess Classic B 2024"]
[Site "Saint Louis"]
[Date "2024.04.16"]
[Round "6.4"]
[White "Ali Marandi, Cemil Can"]
[Black "Chandra, Akshat"]
[Result "1/2-1/2"]
[ECO "D44"]
[WhiteElo "2516"]
[BlackElo "2489"]
[Annotator "RC"]
[PlyCount "58"]
[EventDate "2024.04.11"]
[EventCountry "USA"]
[SourceTitle "playchess.com"]
[Source "ChessBase"]
[SourceQuality "1"]
[TimeControl "7200+30"]

1. c4 {[%emt 0:00:06]} e6 {[%emt 0:00:10]} 2. d4 {[%emt 0:00:15]} Nf6 {[%emt 0:00:17]} 3. Nf3 {[%emt 0:00:26]} d5 {[%emt 0:00:07]} 4. Nc3 {[%emt 0:00:12]} c6 {[%emt 0:01:02]} 5. Bg5 {[%emt 0:03:36]} dxc4 {[%emt 0:00:38]} 6. e4 {[%emt 0:02:31]} b5 {[%emt 0:00:28]} 7. e5 {[%emt 0:00:29]} h6 {[%emt 0:00:06]} 8. Bh4 {[%emt 0:00:04]} g5 {[%emt 0:00:12]} 9. Nxg5 {[%emt 0:04:02]} hxg5 {[%emt 0:00:11]} 10. Bxg5 {[%emt 0:00:07]} Nbd7 {[%emt 0:03:00]} 11. g3 {[%emt 0:02:44]} Bb7 {[%emt 0:01:58]} 12. Bg2 {[%emt 0:00:19]} Qb6 {[%emt 0:02:31]} 13. exf6 {[%emt 0:00:51]} c5 {[%emt 0:00:40]} 14. d5 {[%emt 0:00:17]} O-O-O {[%emt 0:00:21]} 15. O-O {[%emt 0:00:10]} b4 {[%emt 0:00:58]} 16. Rb1 {[%emt 0:03:05]} Qa6 {[%emt 0:17:53]} 17. dxe6 {[%emt 0:03:35]} Bxg2 {[%emt 0:04:57]} 18. e7 {[%emt 0:04:58]} Bxf1 {[%emt 0:06:58]} 19. Qd5 {[%emt 0:01:07]} Bxe7 {[%emt 0:06:26]} 20. fxe7 {[%emt 0:00:18]} Bd3 {[%emt 0:06:39]} 21. exd8=Q+ {[%emt 0:05:13]} Rxd8 {[%emt 0:00:23]} 22. Ne4 {[%emt 0:03:11]} Bxb1 {[%emt 0:04:15]} 23. Nd6+ {[%emt 0:00:18]} Kc7 {[%emt 0:00:22]} 24. Bf4 {[%emt 0:00:36]} Kb6 {[%emt 0:01:17]} 25. Nxc4+ {[%emt 0:00:41]} Kb5 {[%emt 0:00:13]} 26. Nd6+ {[%emt 0:00:32]} Kb6 {[%emt 0:00:23]} 27. Nc4+ {[%emt 0:02:08]} Kb5 {[%emt 0:00:14]} 28. Nd6+ {[%emt 0:00:05]} Kb6 {[%emt 0:00:08]} 29. Nc4+ {[%emt 0:00:04]} Kb5 {[%emt 0:00:07]} 1/2-1/2

[Event "Spring Chess Classic B 2024"]
[Site "Saint Louis"]
[Date "2024.04.16"]
[Round "6.5"]
[White "Kevlishvili, Robby"]
[Black "Budisavljevic, Luka"]
[Result "1/2-1/2"]
[ECO "C07"]
[WhiteElo "2524"]
[BlackElo "2483"]
[Annotator "RC"]
[PlyCount "62"]
[EventDate "2024.04.11"]
[EventCountry "USA"]
[SourceTitle "playchess.com"]
[Source "ChessBase"]
[SourceQuality "1"]
[TimeControl "7200+30"]

1. e4 {[%emt 0:00:04]} e6 {[%emt 0:00:25]} 2. d4 {[%emt 0:00:07]} d5 {[%emt 0:00:05]} 3. Nd2 {[%emt 0:00:04]} c5 {[%emt 0:00:10]} 4. Ngf3 {[%emt 0:00:07]} cxd4 {[%emt 0:00:14]} 5. Nxd4 {[%emt 0:00:05]} Nc6 {[%emt 0:00:09]} 6. Bb5 {[%emt 0:00:06]} Bd7 {[%emt 0:00:05]} 7. Nxc6 {[%emt 0:00:05]} bxc6 {[%emt 0:00:13]} 8. Bd3 {[%emt 0:00:05]} Qc7 {[%emt 0:00:28]} 9. Qe2 {[%emt 0:00:29]} Ne7 {[%emt 0:00:14]} 10. O-O {[%emt 0:00:26]} Ng6 {[%emt 0:00:22]} 11. Nf3 {[%emt 0:00:17]} Be7 {[%emt 0:00:20]} 12. c4 {[%emt 0:00:13]} dxe4 {[%emt 0:00:37]} 13. Bxe4 {[%emt 0:00:27]} O-O {[%emt 0:00:34]} 14. Bc2 {[%emt 0:06:31]} f5 {[%emt 0:00:06]} 15. c5 {[%emt 0:00:45]} e5 {[%emt 0:00:12]} 16. Ng5 {[%emt 0:00:28]} Bxg5 {[%emt 0:00:15]} 17. Qc4+ {[%emt 0:00:07]} Kh8 {[%emt 0:00:32]} 18. Bxg5 {[%emt 0:00:06]} Rae8 {[%emt 0:04:45]} 19. f3 {[%emt 0:16:24]} Be6 {[%emt 0:03:26]} 20. Qc3 {[%emt 0:00:11]} Qf7 {[%emt 0:05:26]} 21. Rfe1 {[%emt 0:06:34]} Bd5 {[%emt 0:08:05]} 22. Be3 {[%emt 0:06:21]} Re6 {[%emt 0:07:03]} 23. Re2 {[%emt 0:02:52]} Rfe8 {[%emt 0:04:52]} 24. Rae1 {[%emt 0:00:43]} R6e7 {[%emt 0:07:43]} 25. Bg5 {[%emt 0:01:24]} Re6 {[%emt 0:01:33]} 26. Be3 {[%emt 0:07:38]} R6e7 {[%emt 0:00:16]} 27. b3 {[%emt 0:02:08]} Kg8 {[%emt 0:04:37]} 28. Bg5 {[%emt 0:12:03]} Re6 {[%emt 0:00:23]} 29. Be3 {[%emt 0:00:06]} R6e7 {[%emt 0:01:04]} 30. Bg5 {[%emt 0:00:05]} Re6 {[%emt 0:00:47]} 31. Be3 {[%emt 0:00:09]} R6e7 {[%emt 0:08:38]} 1/2-1/2

[Event "Spring Chess Classic B 2024"]
[Site "Saint Louis"]
[Date "2024.04.18"]
[Round "7.1"]
[White "Budisavljevic, Luka"]
[Black "Raja Harshit"]
[Result "1/2-1/2"]
[ECO "B38"]
[WhiteElo "2483"]
[BlackElo "2458"]
[Annotator "TA"]
[PlyCount "170"]
[EventDate "2024.04.11"]
[EventCountry "USA"]
[SourceTitle "playchess.com"]
[Source "ChessBase"]
[SourceQuality "1"]
[TimeControl "7200+30"]

{[%evp 22,170,75,74,67,34,90,72,116,114,116,106,139,135,125,57,50,52,164,-16,-34,-36,45,51,41,0,0,-23,0,0,0,0,27,30,22,12,21,12,9,10,27,8,6,16,78,74,97,85,101,91,110,108,105,83,129,0,110,0,107,112,123,112,176,161,160,113,157,163,168,153,237,204,206,202,189,0,160,145,181,169,270,144,190,194,221,185,200,101,147,84,87,19,97,84,87,92,92,104,82,57,140,138,125,128,114,100,184,193,202,200,195,203,233,256,241,233,248,225,225,233,262,239,679,284,396,396,223,83,169,0,0,0,0,0,0,0,0,0,0,0,0,0,0,0,0,0,0,0,0,0,0]} 1. Nf3 {[%emt 0:00:04]} Nf6 {[%emt 0:01:01]} 2. c4 {[%emt 0:00:22]} g6 {[%emt 0:00:58]} 3. Nc3 {[%emt 0:00:11]} Bg7 {[%emt 0:00:13]} 4. e4 {[%emt 0:00:18]} c5 {[%emt 0:00:08]} 5. d4 {[%emt 0:00:39]} cxd4 {[%emt 0:00:07]} 6. Nxd4 {[%emt 0:00:09]} Nc6 {[%emt 0:00:10]} 7. Be3 {[%emt 0:00:37]} O-O {[%emt 0:02:48]} 8. Be2 {[%emt 0:02:08]} d6 {[%emt 0:00:31]} 9. O-O {[%emt 0:02:07]} Bd7 {[%emt 0:00:56]} 10. h3 {[%emt 0:01:16]} Rc8 {[%emt 0:07:52]} 11. Nf3 {[%emt 0:02:14]} a6 {[%emt 0:11:20]} 12. Rc1 {[%emt 0:03:31]} Qa5 {[%emt 0:07:45]} 13. a3 {[%emt 0:13:12]} b5 {[%emt 0:15:55]} 14. c5 {[%emt 0:06:34]} Rfd8 {[%emt 0:02:02] White is better.} 15. cxd6 {[%emt 0:26:25]} exd6 {[%emt 0:00:26]} 16. Qxd6 {[%emt 0:07:30]} Bxh3 {[%emt 0:06:24]} 17. Qg3 {[%emt 0:00:47]} Be6 {[%emt 0:08:37]} 18. Qh4 {[%emt 0:02:46]} (18. Ng5 $1 $16) 18... Re8 $14 {[%emt 0:09:39]} 19. Ng5 {[%emt 0:04:30]} Bc4 {[%emt 0:11:02] [#]} (19... h5 $14) 20. Nd5 $2 {[%emt 0:15:34]} Bxd5 $11 {[%emt 0:00:11]} 21. exd5 {[%emt 0:00:06]} Ne5 {[%emt 0:00:16]} (21... Ne7 $15 22. Rxc8 Nxc8) 22. Rxc8 $14 {[%emt 0:02:11]} Rxc8 {[%emt 0:00:20]} 23. Bd4 {[%emt 0:01:19]} Re8 {[%emt 0:04:14]} 24. Rd1 {[%emt 0:03:26] Repels Qd2} (24. Ne6 $5 Ned7 (24... fxe6 25. Bxe5 exd5 26. Qd4 $11) 25. Bg4 fxe6 26. dxe6 $16) 24... h6 {[%emt 0:06:46]} 25. Ne6 {[%emt 0:06:22]} fxe6 {[%emt 0:14:17]} 26. Bxe5 {[%emt 0:00:04] A strong pair of Bishops.} Nxd5 {[%emt 0:00:10]} 27. Qg3 {[%emt 0:02:21]} Bxe5 $1 {[%emt 0:03:37]} 28. Qxe5 {[%emt 0:00:03] Black must now prevent Rxd5.} Qd8 {[%emt 0:01:37]} 29. a4 {[%emt 0:04:20]} bxa4 {[%emt 0:01:26]} 30. Bxa6 {[%emt 0:01:26]} Re7 {[%emt 0:07:46]} 31. Bb5 {[%emt 0:05:16]} Qc7 {[%emt 0:02:46]} 32. Qe4 {[%emt 0:00:17]} Kf7 {[%emt 0:00:09]} (32... Kh7 $11 {remains equal.}) 33. Bd3 $1 $16 {[%emt 0:01:30]} (33. Bxa4 Qf4 34. Qxf4+ Nxf4 $11) 33... Qf4 {[%emt 0:01:15]} 34. Qxg6+ {[%emt 0:02:39]} Kf8 {[%emt 0:00:01]} 35. Bf1 {[%emt 0:02:30]} Qf6 {[%emt 0:01:29]} 36. Qc2 {[%emt 0:00:40][%cal Od1d3]} Rc7 {[%emt 0:01:47]} 37. Qe4 {[%emt 0:01:06]} (37. Qxa4 Qxb2 38. Qa5 Rf7) 37... Rf7 {[%emt 0:00:41]} (37... h5 $142) 38. Qc2 {[%emt 0:00:31][%cal Od1d3]} (38. Qxa4 $2 Qxf2+ 39. Kh2 Rf4 (39... Qxb2 40. Qe4 $15) 40. Qa8+ Kf7 $19) 38... Rc7 $1 {[%emt 0:01:31]} 39. Qe4 {[%emt 0:00:22]} Rf7 $1 {[%emt 0:00:04]} 40. Rd2 {[%emt 0:00:33]} (40. Qxa4 $2 Qxf2+ 41. Kh2 Rf4 (41... Qxb2 42. Qa1 $15) 42. Qa8+ Kf7 $19) 40... Qf4 {[%emt 0:01:13]} 41. Qe2 {[%emt 0:00:46]} (41. Qxe6 $2 Qxd2 42. Qc8+ Kg7 43. Qg4+ Kh8 (43... Qg5 $2 44. Qxa4 $19) 44. Qc8+ Kh7 $19) 41... Qg5 {[%emt 0:00:54]} (41... Nf6 $16) 42. Rc2 {[%emt 0:00:47]} Nf4 {[%emt 0:00:31]} 43. Qf3 {[%emt 0:00:16]} (43. Qe3 $142) 43... Nd5 {[%emt 0:00:30]} 44. Qa3+ {[%emt 0:00:26]} Kg7 {[%emt 0:00:05]} 45. Qxa4 {[%emt 0:01:07]} h5 {[%emt 0:00:03]} (45... Nf6 $16 46. b4 Ng4 47. Qa1+ Qf6) 46. Qd4+ {[%emt 0:00:23]} Qf6 {[%emt 0:00:24]} 47. Qe4 {[%emt 0:01:30]} Qf5 {[%emt 0:00:08]} 48. Qd4+ {[%emt 0:02:31]} Qf6 {[%emt 0:00:11]} 49. Qd1 {[%emt 0:01:11]} h4 {[%emt 0:00:23]} 50. Qg4+ {[%emt 0:00:27]} Kh6 {[%emt 0:00:05]} (50... Qg6 $142 51. Qe2 (51. Qxh4 $2 {loses.} Qxc2 52. Qg3+ Qg6 $19) 51... Rf4) 51. Kh1 {[%emt 0:01:46]} (51. b4 $18) 51... Rg7 {[%emt 0:01:51]} (51... Ra7 $16) 52. Qe4 $18 {[%emt 0:00:22]} Nf4 {[%emt 0:01:18]} 53. Rc8 {[%emt 0:01:01] And now Rh8+ would win.} Rg5 {[%emt 0:00:35]} 54. Rc7 {[%emt 0:01:03]} ({White should try} 54. Rc4 $18 Rf5 55. Qe3) 54... Ng6 {[%emt 0:00:11]} (54... Rf5 $142) 55. Qb7 {[%emt 0:01:21] White has more active pieces.} (55. Kg1 $142) 55... Rf5 $16 {[%emt 0:00:48]} 56. Rh7+ {[%emt 0:00:27]} Kg5 {[%emt 0:00:01]} 57. Be2 $1 $40 {[%emt 0:02:02][%mdl 128] Rh5+ would now be deadly. Black is in trouble.} Qd4 {[%emt 0:00:24]} 58. Rh5+ {[%emt 0:00:45]} Kf6 {[%emt 0:00:10]} 59. Rxf5+ $1 {[%emt 0:00:09]} exf5 {[%emt 0:00:14][%mdl 4096] Endgame. KQB-KQN} 60. Qc6+ {[%emt 0:00:36]} (60. Kg1 {is interesting.} Ne5 61. b4 Qa1+ 62. Bf1) 60... Kg5 {[%emt 0:00:04]} (60... Kg7 $1 $14) 61. Qc1+ {[%emt 0:00:46]} Nf4 {[%emt 0:00:50]} 62. Kg1 {[%emt 0:00:45]} Kf6 {[%emt 0:00:10]} 63. Bf1 {[%emt 0:00:15]} Qe4 {[%emt 0:00:56] Prevents Qc6+} (63... Ng6 $16 {was necessary.} 64. Qc6+ Kg5) 64. Qc3+ $18 {[%emt 0:00:23]} Kg6 {[%emt 0:00:36]} 65. Qd2 {[%emt 0:01:07]} Nd5 {[%emt 0:00:24]} 66. Bd3 {[%emt 0:00:32]} Qf4 {[%emt 0:00:40] [#]} 67. Qxf4 $1 {[%emt 0:02:46]} Nxf4 {[%emt 0:00:03] KB-KN} 68. Bc4 {[%emt 0:00:29]} Kf6 {[%emt 0:00:03]} 69. b4 {[%emt 0:00:03] Strongly threatening Kh2.} Ke5 {[%emt 0:00:10]} 70. b5 {[%emt 0:00:14]} Kd6 {[%emt 0:00:11]} 71. Kh2 {[%emt 0:01:13]} Kc5 $2 {[%emt 0:00:05]} (71... Ke5 72. g3 (72. b6 Kd6 $18) 72... hxg3+ 73. fxg3 (73. Kxg3 Nh5+ 74. Kh4 Nf6 $18) 73... Ng6) 72. Bf1 {[%emt 0:00:02]} (72. g3 $142 hxg3+ 73. Kxg3 (73. fxg3 Nh5 $16)) 72... Kd6 {[%emt 0:00:32] [#]} 73. g3 $1 {[%emt 0:00:53]} hxg3+ {[%emt 0:00:04]} 74. fxg3 {[%emt 0:00:31]} (74. Kxg3 $18 Nh5+ 75. Kf3) 74... Nd5 {[%emt 0:01:48]} (74... Ng6 $16) 75. Kg2 $2 {[%emt 0:00:28]} (75. Bd3 $18 Kc5 76. Kh3 (76. Bxf5 Kxb5 77. Bh3 Kc5 $11)) 75... f4 $11 {[%emt 0:02:08] The position is equal.} 76. g4 {[%emt 0:00:01][%cal Bg3g4,Bg4g5][%mdl 32]} Ne3+ {[%emt 0:00:02]} 77. Kf3 {[%emt 0:00:05]} Nxf1 {[%emt 0:00:16]} 78. Kxf4 {[%emt 0:00:02] KN-KPP} Nd2 $1 {[%emt 0:00:03]} 79. g5 {[%emt 0:00:26] Threatening mate with g6.} Nc4 {[%emt 0:01:09]} 80. Kf5 {[%emt 0:00:01]} Ne5 81. b6 Nf3 82. g6 {Intending g7 and mate.} (82. b7 $5 Kc7 $8 83. Kf6 Nxg5 84. Kxg5 $11) 82... Nh4+ $1 83. Kf6 {White threatens g7 and mate.} Nxg6 $1 84. Kxg6 (84. b7 $5 Kc7 $8 85. Kxg6 $11) 84... Kc6 85. Kf5 Kxb6 {White really could win this.   Weighted Error Value: White=0.30/Black=0.24 (precise) .  Missed win:     	White=2     	---        Mistake:       	White=7     	Black=14     Inaccurate:     	White=2     	Black=5      OK:         	White=20    	Black=21     Best:        	White=7     	Black=9      Strong:       	White=3     	Black=6} 1/2-1/2

[Event "Spring Chess Classic B 2024"]
[Site "Saint Louis"]
[Date "2024.04.17"]
[Round "7.2"]
[White "Chandra, Akshat"]
[Black "Kevlishvili, Robby"]
[Result "1/2-1/2"]
[ECO "C70"]
[WhiteElo "2489"]
[BlackElo "2524"]
[Annotator "TA"]
[PlyCount "65"]
[EventDate "2024.04.11"]
[EventCountry "USA"]
[SourceTitle "playchess.com"]
[Source "ChessBase"]
[SourceQuality "1"]
[TimeControl "7200+30"]

{[%evp 9,65,66,50,51,41,50,58,47,52,41,48,42,60,65,37,45,27,31,20,0,8,5,44,0,0,0,0,0,0,0,0,0,0,0,0,0,0,0,0,6,0,0,0,0,0,0,0,0,0,0,0,0,0,0,0,0,0,0]} 1. e4 {[%emt 0:00:03]} e5 {[%emt 0:00:07]} 2. Nf3 {[%emt 0:00:04]} Nc6 {[%emt 0:00:05]} 3. Bb5 {[%emt 0:00:06][%cal Bf1b5,Bb5a4,Ba4b3][%mdl 32]} a6 {[%emt 0:00:06]} 4. Ba4 {[%emt 0:00:05]} f5 {[%emt 0:00:19]} 5. d4 {[%emt 0:02:01]} exd4 {[%emt 0:00:00]} 6. e5 {[%emt 0:00:10][%cal Oe1g1]} b5 {[%emt 0:00:04]} 7. Bb3 {[%emt 0:00:13][%cal Oe1g1] Hoping for 0-0!} Bb7 {[%emt 0:00:10]} 8. O-O {[%emt 0:05:43][%cal Oa2a4] White is slightly better.} (8. Nxd4 $2 Nxd4 9. Qxd4 c5 $19) 8... Na5 $1 {[%emt 0:00:26]} 9. Nxd4 {[%emt 0:02:17]} (9. Qxd4 c5 10. Qf4 c4 $15) 9... c5 $1 {[%emt 0:00:19][%cal Bc7c5,Bc5c4,Bc4b3,Bb3c2][%mdl 32]} 10. Nxf5 {[%emt 0:04:30]} c4 $1 {[%emt 0:00:17][%cal Od8b6]} 11. Nc3 {[%emt 0:02:24][%cal Oc3d5] [#] Nd5! would now be deadly.} Qb6 $1 {[%emt 0:04:42][%cal Ob6g6]} 12. Nd5 {[%emt 0:05:47]} Qc6 {[%emt 0:03:33]} 13. Nf4 {[%emt 0:02:43][%cal Oc1d2]} (13. Qh5+ $2 g6 14. Qg4 Qxd5 $19 (14... cxb3 $2 15. Nfe3 $19)) 13... O-O-O $1 {[%emt 0:02:48][%cal Of8c5] [#]} 14. a4 $1 {[%emt 0:04:59]} cxb3 {[%emt 0:01:11]} 15. Nd4 {[%emt 0:01:06]} bxc2 $1 {[%emt 0:01:24]} 16. Qd2 {[%emt 0:01:19]} Qc4 {[%emt 0:04:32] The position is equal.} 17. axb5 {[%emt 0:01:48]} axb5 {[%emt 0:00:41]} 18. Qxa5 {[%emt 0:01:13]} (18. Rxa5 $2 {perishes.} Bb4 19. Nxb5 d5 $19 (19... Bxd2 $2 20. Nd6+ Kb8 21. Nxc4 $17)) 18... Qxd4 {[%emt 0:00:29]} 19. Qxb5 {[%emt 0:01:04] Strongly threatening Ra4.} Qb4 {[%emt 0:01:15]} ({Wrong is} 19... Ne7 $2 20. Be3 Bc6 (20... Qe4 $2 21. Ra4 $18) 21. Ra8+ Bxa8 22. Bxd4 $18) 20. Qd3 {[%emt 0:01:52]} Qe4 {[%emt 0:01:11]} 21. Qb3 {[%emt 0:01:06] Be3 is the strong threat.} Ne7 {[%emt 0:04:42][%cal Oe7d5,Bg8e7,Be7f5,Bf5e3][%mdl 32]} 22. Ra4 $1 {[%emt 0:03:23]} Qxe5 {[%emt 0:00:27] aiming for ...Nd5.} 23. Be3 {[%emt 0:03:38][%cal Of1c1] Black must now prevent Rc1! Dancing on a razor blade.} Nf5 {[%emt 0:03:11] And now ...Nxe3 would win.} 24. Qxc2+ {[%emt 0:05:23]} (24. Nd3 $5 Qd5 $8 25. Qc3+ Bc6 (25... Qc6 $2 26. Rc4 $18) 26. Nf4 $11) 24... Bc6 {[%emt 0:00:12]} 25. Ra8+ {[%emt 0:00:44]} Kc7 {[%emt 0:00:11]} 26. Ra7+ {[%emt 0:00:24]} Kb8 {[%emt 0:00:22]} 27. Rfa1 $1 {[%emt 0:02:18][%cal Oc2c6] White threatens Qxc6! and mate.} Nxe3 {[%emt 0:01:45]} 28. Qb3+ {[%emt 0:00:41]} Qb5 $1 {[%emt 0:00:21]} 29. Ra8+ $1 {[%emt 0:00:43]} Kc7 $1 {[%emt 0:00:09]} 30. R8a7+ {[%emt 0:01:21]} Kb8 {[%emt 0:00:10]} 31. Ra8+ $1 {[%emt 0:00:20]} Kc7 $1 {[%emt 0:00:07][%cal Od8a8]} 32. R8a7+ {[%emt 0:00:04]} Kb8 {[%emt 0:00:05]} 33. Ra8+ $1 {[%emt 0:00:06] Weighted Error Value: White=0.02 (flawless) /Black=0.00 (flawless) .  Inaccurate:     	White=1     	---        OK:         	White=14    	Black=7      Best:        	White=2     	Black=5      Strong:       	White=5     	Black=9} 1/2-1/2

[Event "Spring Chess Classic B 2024"]
[Site "Saint Louis"]
[Date "2024.04.17"]
[Round "7.3"]
[White "Van Foreest, Lucas"]
[Black "Ali Marandi, Cemil Can"]
[Result "1/2-1/2"]
[ECO "E32"]
[WhiteElo "2512"]
[BlackElo "2516"]
[Annotator "TA"]
[PlyCount "62"]
[EventDate "2024.04.11"]
[EventCountry "USA"]
[SourceTitle "playchess.com"]
[Source "ChessBase"]
[SourceQuality "1"]
[TimeControl "7200+30"]

{[%evp 13,62,0,0,0,0,0,0,0,0,0,6,5,0,0,8,7,12,24,32,33,29,18,20,21,17,25,23,21,18,17,23,22,21,22,22,22,23,20,36,8,17,7,7,0,7,0,7,0,7,0,7]} 1. d4 {[%emt 0:00:01]} Nf6 {[%emt 0:00:13]} 2. c4 {[%emt 0:00:08]} e6 {[%emt 0:00:34]} 3. Nc3 {[%emt 0:00:20]} Bb4 {[%emt 0:00:40]} 4. Qc2 {[%emt 0:00:09]} O-O {[%emt 0:01:32]} 5. e4 {[%emt 0:00:06][%cal Be2e4,Be4e5][%mdl 32]} d5 {[%emt 0:01:27]} 6. e5 {[%emt 0:00:20]} Ne4 {[%emt 0:01:35]} 7. Bd3 {[%emt 0:00:19]} c5 {[%emt 0:01:47]} 8. Nf3 {[%emt 0:00:07]} cxd4 {[%emt 0:00:21]} 9. Nxd4 {[%emt 0:00:04]} Nd7 {[%emt 0:01:33]} 10. Bf4 {[%emt 0:00:05]} Qh4 {[%emt 0:01:04]} 11. g3 {[%emt 0:00:05]} Qh5 $132 {[%emt 0:00:06][%mdl 2048] Black is fighting back} 12. O-O {[%emt 0:00:16]} g5 {[%emt 0:04:22][%cal Bg7g5,Bg5f4][%mdl 32]} ({Reject} 12... Nxe5 13. Be2 Ng4 14. Bxg4 Qxg4 15. f3 $16 (15. cxd5 Ng5 $11)) 13. cxd5 {[%emt 0:00:13]} (13. Bc1 {seems wilder.} Nxe5 14. cxd5 Bxc3 15. Be2) 13... gxf4 {[%emt 0:01:47]} 14. dxe6 {[%emt 0:04:39]} Nxc3 {[%emt 0:04:12]} 15. exd7 {[%emt 0:01:17]} Bxd7 {[%emt 0:00:20] [#] aiming for ...Ba4.} 16. bxc3 {[%emt 0:00:06]} Rac8 {[%emt 0:00:13]} 17. Bf5 {[%emt 0:01:53]} (17. gxf4 $2 {perishes.} Bxc3 18. Qd1 Bg4 $19 (18... Qxd1 $2 19. Raxd1 Bxd4 20. Be2 $19)) 17... fxg3 {[%emt 0:03:56]} 18. hxg3 {[%emt 0:00:30]} Bxc3 {[%emt 0:02:06] A strong pair of Bishops.} 19. Qd1 {[%emt 0:00:23]} (19. Bxd7 Bxa1 20. Bxc8 Bxd4) (19. Bxd7 {simplifies} Bxa1 20. Bxc8 Bxd4 21. Bxb7 Qxe5 22. Kg2) 19... Qxd1 {[%emt 0:00:23]} 20. Raxd1 {[%emt 0:00:04]} Rc4 {[%emt 0:00:21]} 21. Bxd7 {[%emt 0:00:07][%cal Oe5e6] [#] Threatens to win with e6!} Rxd4 {[%emt 0:00:06]} 22. Rxd4 {[%emt 0:00:18]} Bxd4 $11 {[%emt 0:00:02][%mdl 4096] Endgame. KRB-KRB} 23. e6 {[%emt 0:00:05]} fxe6 {[%emt 0:00:14]} 24. Bxe6+ {[%emt 0:00:05]} Kg7 {[%emt 0:00:09]} 25. Kg2 {[%emt 0:00:01]} Rd8 {[%emt 0:01:29]} 26. Rd1 {[%emt 0:00:07]} Bb6 {[%emt 0:00:08] The position is equal.} 27. Rxd8 {[%emt 0:00:04]} Bxd8 {[%emt 0:00:06]} 28. Bb3 {[%emt 0:00:06]} Bf6 {[%emt 0:00:09]} 29. Be6 {[%emt 0:00:04]} Bd8 {[%emt 0:00:09]} 30. Bb3 {[%emt 0:00:04]} Bf6 {[%emt 0:00:11]} 31. Be6 {[%emt 0:00:04]} Bd8 {[%emt 0:00:06] Weighted Error Value: White=0.04 (flawless) /Black=0.02 (flawless) .  Inaccurate:     	White=1     	---        OK:         	White=11    	Black=13     Best:        	---       	Black=2} 1/2-1/2